Workbook

Sheet Menu
B9: NOTA: Este archivo tiene como objetivo facilitar los cálculos que en el marco de la resolución 4859 de 2019 usted debe realizar. Sin embargo, deberá correr cuantas macro sean necesarias, de acuerdo con la información que tiene disponible. Es decir, en caso de contar con información que empieza desde fechas diferentes, deberá correr macros diferentes para incorporar TODA la información que tiene disponible.
B12: Le recomendamos presentar en este formatos los resultados finales de la valoración. En caso de haber corrido más de una macro, incluya en la pestaña "Consolidado" los resultados de la regresión y los errores de cada una de las macro utilizadas, y marque el archivo como "Consolidado Final".
B16: INSTRUCCIONES

Sheet Supuestos macro
B2: Supuestos macroeconómicos (Política macro) PIB HISTÓRICO | F2: Supuestos macroeconómicos (proyección escenario riesgo) PIB MENSUAL | K2: IPC | P2: Proyección PIB mensual ( En valores)
P3: Nota: Pegar como valor el resultado de la columna H, en la columna R.
B4: Fecha de actualización | C4: 2024-07-01 | F4: Crecimiento escenario en riesgo | G4: 0.015 | K4: Supuesto de inflación | L4: 0.03
B6: Año | C6: PIB Interno Real ($ Millones de 2015) | D6: Variación porcentual | F6: Año | G6: Mes | H6: PIB Interno Real ($ Millones de 2015) | I6: Variación porcentual | K6: Año | L6: IPC | M6: IPC Valor | N6: Indice (Constantes 2015) | P6: Año | Q6: Mes | R6: PIB Interno Real ($ Millones de 2015) | S6: Días hábiles
B7: 2003 | C7: 471264.174 | D7: 4.56097532 | F7: 2003 | G7: Enero | H7: =$C$7/12 -> 39272.0145 | K7: 2002 | L7: 51.4779 | M7: 51.4779 | N7: 1.710442734 | P7: 2003 | Q7: Enero | R7: 39272.0145 | S7: 21
B8: 2004 | C8: 491303.0749 | D8: 4.25215877 | F8: 2003 | G8: Febrero | H8: =$C$7/12 -> 39272.0145 | K8: 2003 | L8: 53.07 | M8: 53.07 | N8: =$L$20/L8 -> 1.659129452 | P8: 2003 | Q8: Febrero | R8: 39272.0145 | S8: 20
B9: 2005 | C9: 514853 | D9: 4.793359997 | F9: 2003 | G9: Marzo | H9: 39272.0145 | K9: 2004 | L9: 55.99 | M9: 55.99 | N9: 1.57260225 | P9: 2003 | Q9: Marzo | R9: 39272.0145 | S9: 22
B10: 2006 | C10: 549435 | D10: 6.716868698 | F10: 2003 | G10: Abril | H10: 39272.0145 | K10: 2005 | L10: 58.7 | M10: 58.7 | N10: 1.5 | P10: 2003 | Q10: Abril | R10: 39272.0145 | S10: 19
B11: 2007 | C11: 586457 | D11: 6.738194691 | F11: 2003 | G11: Mayo | H11: 39272.0145 | K11: 2006 | L11: 61.33 | M11: 61.33 | N11: 1.435675852 | P11: 2003 | Q11: Mayo | R11: 39272.0145 | S11: 21
B12: 2008 | C12: 605713 | D12: 3.283446186 | F12: 2003 | G12: Junio | H12: 39272.0145 | K12: 2007 | L12: 64.82 | M12: 64.82 | N12: 1.358377044 | P12: 2003 | Q12: Junio | R12: 39272.0145 | S12: 20
B13: 2009 | C13: 612616 | D13: 1.139648645 | F13: 2003 | G13: Julio | H13: =$C$7/12 -> 39272.0145 | K13: 2008 | L13: 69.8 | M13: 69.8 | N13: 1.261461318 | P13: 2003 | Q13: Julio | R13: 39272.0145 | S13: 20
B14: 2010 | C14: 640151 | D14: 4.494658971 | F14: 2003 | G14: Agosto | H14: 39272.0145 | K14: 2009 | L14: 71.2 | M14: 71.2 | N14: 1.236657303 | P14: 2003 | Q14: Agosto | R14: 39272.0145 | S14: 21
B15: 2011 | C15: 684628 | D15: 6.947891982 | F15: 2003 | G15: Septiembre | H15: 39272.0145 | K15: 2010 | L15: 73.45 | M15: 73.45 | N15: 1.198774677 | P15: 2003 | Q15: Septiembre | R15: 39272.0145 | S15: 20
B16: 2012 | C16: 711415 | D16: 3.912635767 | F16: 2003 | G16: Octubre | H16: 39272.0145 | K16: 2011 | L16: 76.19 | M16: 76.19 | N16: 1.155663473 | P16: 2003 | Q16: Octubre | R16: 39272.0145 | S16: 22
B17: 2013 | C17: 747939 | D17: 5.13399352 | F17: 2003 | G17: Noviembre | H17: 39272.0145 | K17: 2012 | L17: 78.05 | M17: 78.05 | N17: 1.128122998 | P17: 2003 | Q17: Noviembre | R17: 39272.0145 | S17: 20
B18: 2014 | C18: 781589 | D18: 4.499030001 | F18: 2003 | G18: Diciembre | H18: 39272.0145 | K18: 2013 | L18: 79.56 | M18: 79.56 | N18: 1.106711916 | P18: 2003 | Q18: Diciembre | R18: 39272.0145 | S18: 20
B19: 2015 | C19: 804692 | D19: 2.955901375 | F19: =F7+1 -> 2004 | G19: Enero | H19: =$C$8/12 -> 40941.92291 | I19: =(H19-H7)/H7 -> 0.0425215877 | K19: 2014 | L19: 82.47 | M19: 82.47 | N19: 1.067660968 | P19: =P7+1 -> 2004 | Q19: Enero | R19: 40941.92291 | S19: 21
B20: 2016 | C20: 821489 | D20: 2.087382502 | F20: =F8+1 -> 2004 | G20: Febrero | H20: =$C$8/12 -> 40941.92291 | I20: =(H20-H8)/H8 -> 0.0425215877 | K20: 2015 | L20: 88.05 | M20: 88.05 | N20: 1 | P20: =P8+1 -> 2004 | Q20: Febrero | R20: 40941.92291 | S20: 20
B21: 2017 | C21: 832656 | D21: 1.359360868 | F21: 2004 | G21: Marzo | H21: 40941.92291 | I21: 0.0425215877 | K21: 2016 | L21: 93.11 | M21: 93.11 | N21: 0.9456556761 | P21: 2004 | Q21: Marzo | R21: 40941.92291 | S21: 18
B22: 2018 | C22: 854008 | D22: 2.564324283 | F22: 2004 | G22: Abril | H22: 40941.92291 | I22: 0.0425215877 | K22: 2017 | L22: 96.92 | M22: 96.92 | N22: 0.9084812216 | P22: 2004 | Q22: Abril | R22: 40941.92291 | S22: 22
B23: 2019 | C23: 881224 | D23: 3.186855392 | F23: 2004 | G23: Mayo | H23: 40941.92291 | I23: 0.0425215877 | K23: 2018 | L23: 100 | M23: 100 | N23: 0.8805 | P23: 2004 | Q23: Mayo | R23: 40941.92291 | S23: 20
B24: 2020 | C24: 817900 | D24: -7.185914138 | F24: 2004 | G24: Junio | H24: =$C$8/12 -> 40941.92291 | I24: 0.0425215877 | K24: 2019 | L24: 103.8 | M24: 103.8 | N24: 0.848265896 | P24: 2004 | Q24: Junio | R24: 40941.92291 | S24: 19
B25: 2021 | C25: 906243 | D25: 10.80119819 | F25: 2004 | G25: Julio | H25: 40941.92291 | I25: 0.0425215877 | K25: 2020 | L25: 105.48 | M25: 105.48 | N25: 0.8347554039 | P25: 2004 | Q25: Julio | R25: 40941.92291 | S25: 23
B26: 2022 | C26: 972298 | D26: 7.288883887 | F26: 2004 | G26: Agosto | H26: 40941.92291 | I26: 0.0425215877 | K26: 2021 | L26: 111.41 | M26: 111.41 | N26: 0.7903240284 | P26: 2004 | Q26: Agosto | R26: 40941.92291 | S26: 19
B27: 2023 | C27: 978233.1647 | D27: 0.6104265084 | F27: 2004 | G27: Septiembre | H27: 40941.92291 | I27: 0.0425215877 | K27: 2022 | L27: 126.03 | M27: 126.03 | N27: 0.6986431802 | P27: 2004 | Q27: Septiembre | R27: 40941.92291 | S27: 22
B28: 2024 | C28: 995114.5332 | D28: 1.725699872 | F28: 2004 | G28: Octubre | H28: 40941.92291 | I28: 0.0425215877 | K28: 2023 | L28: 137.72 | M28: 137.72 | N28: =$L$20/L28 -> 0.6393406913 | P28: 2004 | Q28: Octubre | R28: 40941.92291 | S28: 22
B29: 2025 | C29: 1024911.629 | D29: 2.994338323 | F29: 2004 | G29: Noviembre | H29: 40941.92291 | I29: 0.0425215877 | K29: 2024 | L29: 145.0386197 | M29: 145.0386197 | N29: =$L$20/L29 -> 0.6070796881 | P29: 2004 | Q29: Noviembre | R29: 40941.92291 | S29: 18
B30: 2026 | C30: 1055249.013 | D30: 2.96 | F30: 2004 | G30: Diciembre | H30: 40941.92291 | I30: 0.0425215877 | K30: 2025 | L30: 149.7300521 | M30: 149.7300521 | N30: 0.5880583005 | P30: 2004 | Q30: Diciembre | R30: 40941.92291 | S30: 21
B31: Fuente: Política Macro MHCP | F31: 2005 | G31: Enero | H31: =$D$34/3 -> 42101.27991 | I31: 0.02831711144 | K31: 2026 | L31: 154.2219537 | M31: 154.2219537 | N31: 0.5709303889 | P31: 2005 | Q31: Enero | R31: 42101.27991 | S31: 20
F32: 2005 | G32: Febrero | H32: =$D$34/3 -> 42101.27991 | I32: 0.02831711144 | K32: 2027 | L32: 158.8486123 | M32: 158.8486123 | N32: 0.5543013484 | P32: 2005 | Q32: Febrero | R32: 42101.27991 | S32: 20
B33: Año | C33: Trimestre | D33: PIB Interno Real ($ Millones de 2015) | F33: 2005 | G33: Marzo | H33: =$D$34/3 -> 42101.27991 | I33: 0.02831711144 | K33: 2028 | L33: 163.6140707 | M33: 163.6140707 | N33: 0.538156649 | P33: 2005 | Q33: Marzo | R33: 42101.27991 | S33: 20
B34: 2005 | C34: I | D34: 126303.8397 | F34: 2005 | G34: Abril | H34: =$D$35/3 -> 42920.20559 | I34: 0.04831924188 | K34: 2029 | L34: 168.5224928 | M34: 168.5224928 | N34: 0.5224821835 | P34: 2005 | Q34: Abril | R34: 42920.20559 | S34: 22
B35: 2005 | C35: II | D35: 128760.6168 | F35: 2005 | G35: Mayo | H35: =$D$35/3 -> 42920.20559 | I35: 0.04831924188 | K35: 2030 | L35: 173.5781676 | M35: 173.5781676 | N35: 0.5072642558 | P35: 2005 | Q35: Mayo | R35: 42920.20559 | S35: 20
B36: 2005 | C36: III | D36: 128746.263 | F36: 2005 | G36: Junio | H36: =$D$35/3 -> 42920.20559 | I36: 0.04831924188 | K36: 2031 | L36: 178.7855126 | M36: 178.7855126 | N36: 0.4924895687 | P36: 2005 | Q36: Junio | R36: 42920.20559 | S36: 21
B37: 2005 | C37: IV | D37: 131042.2804 | F37: 2005 | G37: Julio | H37: =$D$36/3 -> 42915.421 | I37: 0.04820237916 | K37: 2032 | L37: 184.149078 | M37: 184.149078 | N37: 0.4781452123 | P37: 2005 | Q37: Julio | R37: 42915.421 | S37: 19
B38: =B34+1 -> 2006 | C38: I | D38: 133975.644 | F38: 2005 | G38: Agosto | H38: =$D$36/3 -> 42915.421 | I38: 0.04820237916 | K38: 2033 | L38: 189.6735503 | M38: 189.6735503 | N38: 0.4642186528 | P38: 2005 | Q38: Agosto | R38: 42915.421 | S38: 22
B39: =B35+1 -> 2006 | C39: II | D39: 136054.5233 | F39: 2005 | G39: Septiembre | H39: =$D$36/3 -> 42915.421 | I39: 0.04820237916 | K39: 2034 | L39: 195.3637568 | M39: 195.3637568 | N39: 0.4506977211 | P39: 2005 | Q39: Septiembre | R39: 42915.421 | S39: 22
B40: 2006 | C40: III | D40: 138623.81 | F40: 2005 | G40: Octubre | H40: =$D$37/3 -> 43680.76013 | I40: 0.06689566641 | K40: 2035 | L40: 201.2246695 | M40: 201.2246695 | N40: =$L$20/L40 -> 0.437570603 | P40: 2005 | Q40: Octubre | R40: 43680.76013 | S40: 20
B41: 2006 | C41: IV | D41: 140781.0228 | F41: 2005 | G41: Noviembre | H41: =$D$37/3 -> 43680.76013 | I41: 0.06689566641 | K41: 2036 | L41: 207.2614096 | M41: 207.2614096 | N41: 0.4248258282 | P41: 2005 | Q41: Noviembre | R41: 43680.76013 | S41: 20
B42: 2007 | C42: I | D42: 143081.2683 | F42: 2005 | G42: Diciembre | H42: =$D$37/3 -> 43680.76013 | I42: 0.06689566641 | K42: 2037 | L42: 213.4792519 | M42: 213.4792519 | N42: 0.4124522604 | P42: 2005 | Q42: Diciembre | R42: 43680.76013 | S42: 22
B43: 2007 | C43: II | D43: 145246.0084 | F43: 2006 | G43: Enero | H43: =$D$38/3 -> 44658.54799 | I43: 0.06074086327 | K43: 2038 | L43: 219.8836295 | M43: 219.8836295 | N43: 0.4004390878 | P43: 2006 | Q43: Enero | R43: 44658.54799 | S43: 21
B44: 2007 | C44: III | D44: 148163.7641 | F44: 2006 | G44: Febrero | H44: =$D$38/3 -> 44658.54799 | I44: 0.06074086327 | K44: 2039 | L44: 226.4801384 | M44: 226.4801384 | N44: 0.3887758134 | P44: 2006 | Q44: Febrero | R44: 44658.54799 | S44: 20
B45: 2007 | C45: IV | D45: 149965.9593 | F45: 2006 | G45: Marzo | H45: =$D$38/3 -> 44658.54799 | I45: 0.06074086327 | K45: 2040 | L45: 233.2745425 | M45: 233.2745425 | N45: 0.377452246 | P45: 2006 | Q45: Marzo | R45: 44658.54799 | S45: 22
B46: 2008 | C46: I | D46: 150969.3783 | F46: 2006 | G46: Abril | H46: =$D$39/3 -> 45351.50775 | I46: 0.05664702976 | K46: 2041 | L46: 240.2727788 | M46: 240.2727788 | N46: 0.3664584912 | P46: 2006 | Q46: Abril | R46: 45351.50775 | S46: 18
B47: 2008 | C47: II | D47: 151290.893 | F47: 2006 | G47: Mayo | H47: =$D$39/3 -> 45351.50775 | I47: 0.05664702976 | K47: 2042 | L47: 247.4809622 | M47: 247.4809622 | N47: 0.3557849429 | P47: 2006 | Q47: Mayo | R47: 45351.50775 | S47: 21
B48: 2008 | C48: III | D48: 153013.0751 | F48: 2006 | G48: Junio | H48: =$D$39/3 -> 45351.50775 | I48: 0.05664702976 | K48: 2043 | L48: 254.905391 | M48: 254.905391 | N48: 0.3454222747 | P48: 2006 | Q48: Junio | R48: 45351.50775 | S48: 20
B49: 2008 | C49: IV | D49: 150439.6536 | F49: 2006 | G49: Julio | H49: =$D$40/3 -> 46207.93666 | I49: 0.07672103813 | K49: 2044 | L49: 262.5525527 | M49: 262.5525527 | N49: 0.3353614318 | P49: 2006 | Q49: Julio | R49: 46207.93666 | S49: 19
B50: 2009 | C50: I | D50: 150708.0858 | F50: 2006 | G50: Agosto | H50: =$D$40/3 -> 46207.93666 | I50: 0.07672103813 | K50: 2045 | L50: 270.4291293 | M50: 270.4291293 | N50: 0.3255936231 | P50: 2006 | Q50: Agosto | R50: 46207.93666 | S50: 21
B51: 2009 | C51: II | D51: 152585.221 | F51: 2006 | G51: Septiembre | H51: =$D$40/3 -> 46207.93666 | I51: 0.07672103813 | K51: 2046 | L51: 278.5420032 | M51: 278.5420032 | N51: 0.3161103137 | P51: 2006 | Q51: Septiembre | R51: 46207.93666 | S51: 22
B52: 2009 | C52: III | D52: 154064.7739 | F52: 2006 | G52: Octubre | H52: =$D$41/3 -> 46927.0076 | I52: 0.07431755909 | K52: 2047 | L52: 286.8982633 | M52: 286.8982633 | N52: 0.3069032171 | P52: 2006 | Q52: Octubre | R52: 46927.0076 | S52: 21
B53: 2009 | C53: IV | D53: 155257.9193 | F53: 2006 | G53: Noviembre | H53: =$D$41/3 -> 46927.0076 | I53: 0.07431755909 | K53: 2048 | L53: 295.5052112 | M53: 295.5052112 | N53: 0.2979642885 | P53: 2006 | Q53: Noviembre | R53: 46927.0076 | S53: 20
B54: 2010 | C54: I | D54: 156579.979 | F54: 2006 | G54: Diciembre | H54: =$D$41/3 -> 46927.0076 | I54: 0.07431755909 | K54: 2049 | L54: 304.3703675 | M54: 304.3703675 | N54: 0.289285717 | P54: 2006 | Q54: Diciembre | R54: 46927.0076 | S54: 19
B55: 2010 | C55: II | D55: 159309.648 | F55: 2007 | G55: Enero | H55: =$D$42/3 -> 47693.75609 | I55: 0.06796477342 | K55: 2050 | L55: 313.5014786 | M55: 313.5014786 | N55: 0.2808599194 | P55: 2007 | Q55: Enero | R55: 47693.75609 | S55: 21
B56: 2010 | C56: III | D56: 160450.1103 | F56: 2007 | G56: Febrero | H56: =$D$42/3 -> 47693.75609 | I56: 0.06796477342 | K56: 2051 | L56: 322.9065229 | M56: 322.9065229 | N56: 0.2726795334 | P56: 2007 | Q56: Febrero | R56: 47693.75609 | S56: 20
B57: 2010 | C57: IV | D57: 163811.2627 | F57: 2007 | G57: Marzo | H57: =$D$42/3 -> 47693.75609 | I57: 0.06796477342 | P57: 2007 | Q57: Marzo | R57: 47693.75609 | S57: 22
B58: 2011 | C58: I | D58: 167131.9679 | F58: 2007 | G58: Abril | H58: =$D$43/3 -> 48415.33614 | I58: 0.06755736548 | P58: 2007 | Q58: Abril | R58: 48415.33614 | S58: 19
B59: 2011 | C59: II | D59: 169849.0688 | F59: 2007 | G59: Mayo | H59: =$D$43/3 -> 48415.33614 | I59: 0.06755736548 | P59: 2007 | Q59: Mayo | R59: 48415.33614 | S59: 21
B60: 2011 | C60: III | D60: 173288.4674 | F60: 2007 | G60: Junio | H60: =$D$43/3 -> 48415.33614 | I60: 0.06755736548 | P60: 2007 | Q60: Junio | R60: 48415.33614 | S60: 20
B61: 2011 | C61: IV | D61: 174358.496 | F61: 2007 | G61: Julio | H61: =$D$44/3 -> 49387.92136 | I61: 0.06881901531 | P61: 2007 | Q61: Julio | R61: 49387.92136 | S61: 20
B62: 2012 | C62: I | D62: 177193.6093 | F62: 2007 | G62: Agosto | H62: =$D$44/3 -> 49387.92136 | I62: 0.06881901531 | P62: 2007 | Q62: Agosto | R62: 49387.92136 | S62: 21
B63: 2012 | C63: II | D63: 177894.9818 | F63: 2007 | G63: Septiembre | H63: =$D$44/3 -> 49387.92136 | I63: 0.06881901531 | P63: 2007 | Q63: Septiembre | R63: 49387.92136 | S63: 20
B64: 2012 | C64: III | D64: 177076.008 | F64: 2007 | G64: Octubre | H64: =$D$45/3 -> 49988.65309 | I64: 0.06524271722 | P64: 2007 | Q64: Octubre | R64: 49988.65309 | S64: 22
B65: 2012 | C65: IV | D65: 179250.4009 | F65: 2007 | G65: Noviembre | H65: =$D$45/3 -> 49988.65309 | I65: 0.06524271722 | P65: 2007 | Q65: Noviembre | R65: 49988.65309 | S65: 20
B66: 2013 | C66: I | D66: 182025.6414 | F66: 2007 | G66: Diciembre | H66: =$D$45/3 -> 49988.65309 | I66: 0.06524271722 | P66: 2007 | Q66: Diciembre | R66: 49988.65309 | S66: 20
B67: 2013 | C67: II | D67: 186995.7812 | F67: 2008 | G67: Enero | H67: =$D$46/3 -> 50323.1261 | I67: 0.05513027755 | P67: 2008 | Q67: Enero | R67: 50323.1261 | S67: 21
B68: 2013 | C68: III | D68: 188122.4258 | F68: 2008 | G68: Febrero | H68: =$D$46/3 -> 50323.1261 | I68: 0.05513027755 | P68: 2008 | Q68: Febrero | R68: 50323.1261 | S68: 20
B69: 2013 | C69: IV | D69: 190795.1516 | F69: 2008 | G69: Marzo | H69: =$D$46/3 -> 50323.1261 | I69: 0.05513027755 | P69: 2008 | Q69: Marzo | R69: 50323.1261 | S69: 18
B70: 2014 | C70: I | D70: 193501.1188 | F70: 2008 | G70: Abril | H70: =$D$47/3 -> 50430.29766 | I70: 0.04161824915 | P70: 2008 | Q70: Abril | R70: 50430.29766 | S70: 22
B71: 2014 | C71: II | D71: 194132.296 | F71: 2008 | G71: Mayo | H71: =$D$47/3 -> 50430.29766 | I71: 0.04161824915 | P71: 2008 | Q71: Mayo | R71: 50430.29766 | S71: 20
B72: 2014 | C72: III | D72: 195992.5068 | F72: 2008 | G72: Junio | H72: =$D$47/3 -> 50430.29766 | I72: 0.04161824915 | P72: 2008 | Q72: Junio | R72: 50430.29766 | S72: 19
B73: 2014 | C73: IV | D73: 197963.0784 | F73: 2008 | G73: Julio | H73: =$D$48/3 -> 51004.35836 | I73: 0.03272939948 | P73: 2008 | Q73: Julio | R73: 51004.35836 | S73: 23
B74: 2015 | C74: I | D74: 199136.3645 | F74: 2008 | G74: Agosto | H74: =$D$48/3 -> 51004.35836 | I74: 0.03272939948 | P74: 2008 | Q74: Agosto | R74: 51004.35836 | S74: 19
B75: 2015 | C75: II | D75: 200860.9477 | F75: 2008 | G75: Septiembre | H75: =$D$48/3 -> 51004.35836 | I75: 0.03272939948 | P75: 2008 | Q75: Septiembre | R75: 51004.35836 | S75: 22
B76: 2015 | C76: III | D76: 202672.3264 | F76: 2008 | G76: Octubre | H76: =$D$49/3 -> 50146.55121 | I76: 0.003158679361 | P76: 2008 | Q76: Octubre | R76: 50146.55121 | S76: 22
B77: 2015 | C77: IV | D77: 202022.3614 | F77: 2008 | G77: Noviembre | H77: =$D$49/3 -> 50146.55121 | I77: 0.003158679361 | P77: 2008 | Q77: Noviembre | R77: 50146.55121 | S77: 18
B78: 2016 | C78: I | D78: 204843.6209 | F78: 2008 | G78: Diciembre | H78: =$D$49/3 -> 50146.55121 | I78: 0.003158679361 | P78: 2008 | Q78: Diciembre | R78: 50146.55121 | S78: 21
B79: 2016 | C79: II | D79: 204471.8069 | F79: 2009 | G79: Enero | H79: =$D$50/3 -> 50236.02859 | I79: -0.001730765132 | P79: 2009 | Q79: Enero | R79: 50236.02859 | S79: 20
B80: 2016 | C80: III | D80: 205435.4288 | F80: 2009 | G80: Febrero | H80: =$D$50/3 -> 50236.02859 | I80: -0.001730765132 | P80: 2009 | Q80: Febrero | R80: 50236.02859 | S80: 20
B81: 2016 | C81: IV | D81: 206738.1434 | F81: 2009 | G81: Marzo | H81: =$D$50/3 -> 50236.02859 | I81: -0.001730765132 | P81: 2009 | Q81: Marzo | R81: 50236.02859 | S81: 21
B82: 2017 | C82: I | D82: 206581.7509 | F82: 2009 | G82: Abril | H82: =$D$51/3 -> 50861.74034 | I82: 0.008555227783 | P82: 2009 | Q82: Abril | R82: 50861.74034 | S82: 20
B83: 2017 | C83: II | D83: 207717.3715 | F83: 2009 | G83: Mayo | H83: =$D$51/3 -> 50861.74034 | I83: 0.008555227783 | P83: 2009 | Q83: Mayo | R83: 50861.74034 | S83: 19
B84: 2017 | C84: III | D84: 208663.2477 | F84: =F72+1 -> 2009 | G84: Junio | H84: =$D$51/3 -> 50861.74034 | I84: =(H84-H72)/H72 -> 0.008555227783 | P84: =P72+1 -> 2009 | Q84: Junio | R84: 50861.74034 | S84: 19
B85: 2017 | C85: IV | D85: 209693.63 | F85: 2009 | G85: Julio | H85: =$D$52/3 -> 51354.92465 | I85: 0.006873261377 | P85: 2009 | Q85: Julio | R85: 51354.92465 | S85: 22
B86: 2018 | C86: I | D86: 211004.1087 | F86: 2009 | G86: Agosto | H86: =$D$52/3 -> 51354.92465 | I86: 0.006873261377 | P86: 2009 | Q86: Agosto | R86: 51354.92465 | S86: 19
B87: 2018 | C87: II | D87: 212652.2192 | F87: 2009 | G87: Septiembre | H87: =$D$52/3 -> 51354.92465 | I87: 0.006873261377 | P87: 2009 | Q87: Septiembre | R87: 51354.92465 | S87: 22
B88: 2018 | C88: III | D88: 214457.9357 | F88: 2009 | G88: Octubre | H88: =$D$53/3 -> 51752.63976 | I88: 0.0320278963 | P88: 2009 | Q88: Octubre | R88: 51752.63976 | S88: 21
B89: 2018 | C89: IV | D89: 215893.7364 | F89: 2009 | G89: Noviembre | H89: =$D$53/3 -> 51752.63976 | I89: 0.0320278963 | P89: 2009 | Q89: Noviembre | R89: 51752.63976 | S89: 19
B90: 2019 | C90: I | D90: 217701.9884 | F90: 2009 | G90: Diciembre | H90: =$D$53/3 -> 51752.63976 | I90: 0.0320278963 | P90: 2009 | Q90: Diciembre | R90: 51752.63976 | S90: 21
B91: 2019 | C91: II | D91: 219776.7651 | F91: 2010 | G91: Enero | H91: =$D$54/3 -> 52193.32633 | I91: 0.03896203186 | P91: 2010 | Q91: Enero | R91: 52193.32633 | S91: 19
B92: 2019 | C92: III | D92: 220987.2199 | F92: 2010 | G92: Febrero | H92: =$D$54/3 -> 52193.32633 | I92: 0.03896203186 | P92: 2010 | Q92: Febrero | R92: 52193.32633 | S92: 20
B93: 2019 | C93: IV | D93: 222758.0266 | F93: 2010 | G93: Marzo | H93: =$D$54/3 -> 52193.32633 | I93: 0.03896203186 | P93: 2010 | Q93: Marzo | R93: 52193.32633 | S93: 22
B94: 2020 | C94: I | D94: 218692.1711 | F94: 2010 | G94: Abril | H94: =$D$55/3 -> 53103.21601 | I94: 0.04406997587 | P94: 2010 | Q94: Abril | R94: 53103.21601 | S94: 20
B95: 2020 | C95: II | D95: 182769.2096 | F95: 2010 | G95: Mayo | H95: =$D$55/3 -> 53103.21601 | I95: 0.04406997587 | P95: 2010 | Q95: Mayo | R95: 53103.21601 | S95: 20
B96: 2020 | C96: III | D96: 200927.066 | F96: 2010 | G96: Junio | H96: =$D$55/3 -> 53103.21601 | I96: 0.04406997587 | P96: 2010 | Q96: Junio | R96: 53103.21601 | S96: 20
B97: 2020 | C97: IV | D97: 215511.5533 | F97: 2010 | G97: Julio | H97: =$D$56/3 -> 53483.37009 | I97: 0.04144579037 | P97: 2010 | Q97: Julio | R97: 53483.37009 | S97: 20
B98: 2021 | C98: I | D98: 221847.1218 | F98: 2010 | G98: Agosto | H98: =$D$56/3 -> 53483.37009 | I98: 0.04144579037 | P98: 2010 | Q98: Agosto | R98: 53483.37009 | S98: 21
B99: 2021 | C99: II | D99: 216991.7467 | F99: 2010 | G99: Septiembre | H99: =$D$56/3 -> 53483.37009 | I99: 0.04144579037 | P99: 2010 | Q99: Septiembre | R99: 53483.37009 | S99: 22
B100: 2021 | C100: III | D100: 227955.1661 | F100: 2010 | G100: Octubre | H100: =$D$57/3 -> 54603.75423 | I100: 0.05509118934 | P100: 2010 | Q100: Octubre | R100: 54603.75423 | S100: 20
B101: 2021 | C101: IV | D101: 239448.9653 | F101: 2010 | G101: Noviembre | H101: =$D$57/3 -> 54603.75423 | I101: 0.05509118934 | P101: 2010 | Q101: Noviembre | R101: 54603.75423 | S101: 20
B102: 2022 | C102: I | D102: 239669.6066 | F102: 2010 | G102: Diciembre | H102: =$D$57/3 -> 54603.75423 | I102: 0.05509118934 | P102: 2010 | Q102: Diciembre | R102: 54603.75423 | S102: 22
B103: 2022 | C103: II | D103: 243429.7403 | F103: 2011 | G103: Enero | H103: =$D$58/3 -> 55710.65595 | I103: 0.06739040925 | P103: 2011 | Q103: Enero | R103: 55710.65595 | S103: 20
B104: 2022 | C104: III | D104: 244663.5108 | F104: 2011 | G104: Febrero | H104: =$D$58/3 -> 55710.65595 | I104: 0.06739040925 | P104: 2011 | Q104: Febrero | R104: 55710.65595 | S104: 20
B105: 2022 | C105: IV | D105: 244535.1423 | F105: 2011 | G105: Marzo | H105: =$D$58/3 -> 55710.65595 | I105: 0.06739040925 | P105: 2011 | Q105: Marzo | R105: 55710.65595 | S105: 22
B106: 2023 | C106: I | D106: 245793.335 | F106: 2011 | G106: Abril | H106: =$D$59/3 -> 56616.35625 | I106: 0.06615682642 | P106: 2011 | Q106: Abril | R106: 56616.35625 | S106: 19
B107: 2023 | C107: II | D107: 244042.2379 | F107: 2011 | G107: Mayo | H107: =$D$59/3 -> 56616.35625 | I107: 0.06615682642 | P107: 2011 | Q107: Mayo | R107: 56616.35625 | S107: 22
B108: 2023 | C108: III | D108: 242998.0862 | F108: 2011 | G108: Junio | H108: =$D$59/3 -> 56616.35625 | I108: 0.06615682642 | P108: 2011 | Q108: Junio | R108: 56616.35625 | S108: 20
B109: 2023 | C109: IV | D109: 245399.5056 | F109: 2011 | G109: Julio | H109: =$D$60/3 -> 57762.82247 | I109: 0.08001463576 | P109: 2011 | Q109: Julio | R109: 57762.82247 | S109: 19
B110: 2024 | C110: I | D110: 248071.8021 | F110: 2011 | G110: Agosto | H110: =$D$60/3 -> 57762.82247 | I110: 0.08001463576 | P110: 2011 | Q110: Agosto | R110: 57762.82247 | S110: 22
B111: Fuente: Banco de la Republica | F111: 2011 | G111: Septiembre | H111: =$D$60/3 -> 57762.82247 | I111: 0.08001463576 | P111: 2011 | Q111: Septiembre | R111: 57762.82247 | S111: 22
F112: 2011 | G112: Octubre | H112: =$D$61/3 -> 58119.49866 | I112: 0.06438649638 | P112: 2011 | Q112: Octubre | R112: 58119.49866 | S112: 20
F113: 2011 | G113: Noviembre | H113: =$D$61/3 -> 58119.49866 | I113: 0.06438649638 | P113: 2011 | Q113: Noviembre | R113: 58119.49866 | S113: 20
F114: 2011 | G114: Diciembre | H114: =$D$61/3 -> 58119.49866 | I114: 0.06438649638 | P114: 2011 | Q114: Diciembre | R114: 58119.49866 | S114: 21
F115: 2012 | G115: Enero | H115: =$D$62/3 -> 59064.53644 | I115: 0.06020177706 | P115: 2012 | Q115: Enero | R115: 59064.53644 | S115: 21
F116: 2012 | G116: Febrero | H116: =$D$62/3 -> 59064.53644 | I116: 0.06020177706 | P116: 2012 | Q116: Febrero | R116: 59064.53644 | S116: 21
F117: 2012 | G117: Marzo | H117: =$D$62/3 -> 59064.53644 | I117: 0.06020177706 | P117: 2012 | Q117: Marzo | R117: 59064.53644 | S117: 22
F118: 2012 | G118: Abril | H118: =$D$63/3 -> 59298.32728 | I118: 0.04737095777 | P118: 2012 | Q118: Abril | R118: 59298.32728 | S118: 19
F119: 2012 | G119: Mayo | H119: =$D$63/3 -> 59298.32728 | I119: 0.04737095777 | P119: 2012 | Q119: Mayo | R119: 59298.32728 | S119: 21
F120: 2012 | G120: Junio | H120: =$D$63/3 -> 59298.32728 | I120: 0.04737095777 | P120: 2012 | Q120: Junio | R120: 59298.32728 | S120: 19
F121: 2012 | G121: Julio | H121: =$D$64/3 -> 59025.33599 | I121: 0.02185685304 | P121: 2012 | Q121: Julio | R121: 59025.33599 | S121: 20
F122: 2012 | G122: Agosto | H122: =$D$64/3 -> 59025.33599 | I122: 0.02185685304 | P122: 2012 | Q122: Agosto | R122: 59025.33599 | S122: 21
F123: 2012 | G123: Septiembre | H123: =$D$64/3 -> 59025.33599 | I123: 0.02185685304 | P123: 2012 | Q123: Septiembre | R123: 59025.33599 | S123: 20
F124: 2012 | G124: Octubre | H124: =$D$65/3 -> 59750.13362 | I124: 0.02805659039 | P124: 2012 | Q124: Octubre | R124: 59750.13362 | S124: 22
F125: 2012 | G125: Noviembre | H125: =$D$65/3 -> 59750.13362 | I125: 0.02805659039 | P125: 2012 | Q125: Noviembre | R125: 59750.13362 | S125: 20
F126: 2012 | G126: Diciembre | H126: =$D$65/3 -> 59750.13362 | I126: 0.02805659039 | P126: 2012 | Q126: Diciembre | R126: 59750.13362 | S126: 20
F127: 2013 | G127: Enero | H127: =$D$66/3 -> 60675.21379 | I127: 0.02726978729 | P127: 2013 | Q127: Enero | R127: 60675.21379 | S127: 21
F128: 2013 | G128: Febrero | H128: =$D$66/3 -> 60675.21379 | I128: 0.02726978729 | P128: 2013 | Q128: Febrero | R128: 60675.21379 | S128: 20
F129: 2013 | G129: Marzo | H129: =$D$66/3 -> 60675.21379 | I129: 0.02726978729 | P129: 2013 | Q129: Marzo | R129: 60675.21379 | S129: 18
F130: 2013 | G130: Abril | H130: =$D$67/3 -> 62331.92707 | I130: 0.05115826935 | P130: 2013 | Q130: Abril | R130: 62331.92707 | S130: 22
F131: 2013 | G131: Mayo | H131: =$D$67/3 -> 62331.92707 | I131: 0.05115826935 | P131: 2013 | Q131: Mayo | R131: 62331.92707 | S131: 21
F132: 2013 | G132: Junio | H132: =$D$67/3 -> 62331.92707 | I132: 0.05115826935 | P132: 2013 | Q132: Junio | R132: 62331.92707 | S132: 18
F133: 2013 | G133: Julio | H133: =$D$68/3 -> 62707.47527 | I133: 0.06238235191 | P133: 2013 | Q133: Julio | R133: 62707.47527 | S133: 22
F134: 2013 | G134: Agosto | H134: =$D$68/3 -> 62707.47527 | I134: 0.06238235191 | P134: 2013 | Q134: Agosto | R134: 62707.47527 | S134: 20
F135: 2013 | G135: Septiembre | H135: =$D$68/3 -> 62707.47527 | I135: 0.06238235191 | P135: 2013 | Q135: Septiembre | R135: 62707.47527 | S135: 21
F136: 2013 | G136: Octubre | H136: =$D$69/3 -> 63598.38387 | I136: 0.06440571774 | P136: 2013 | Q136: Octubre | R136: 63598.38387 | S136: 22
F137: 2013 | G137: Noviembre | H137: =$D$69/3 -> 63598.38387 | I137: 0.06440571774 | P137: 2013 | Q137: Noviembre | R137: 63598.38387 | S137: 20
F138: 2013 | G138: Diciembre | H138: =$D$69/3 -> 63598.38387 | I138: 0.06440571774 | P138: 2013 | Q138: Diciembre | R138: 63598.38387 | S138: 21
F139: 2014 | G139: Enero | H139: =$D$70/3 -> 64500.37294 | I139: 0.06304319205 | P139: 2014 | Q139: Enero | R139: 64500.37294 | S139: 21
F140: 2014 | G140: Febrero | H140: =$D$70/3 -> 64500.37294 | I140: 0.06304319205 | P140: 2014 | Q140: Febrero | R140: 64500.37294 | S140: 20
F141: 2014 | G141: Marzo | H141: =$D$70/3 -> 64500.37294 | I141: 0.06304319205 | P141: 2014 | Q141: Marzo | R141: 64500.37294 | S141: 20
F142: 2014 | G142: Abril | H142: =$D$71/3 -> 64710.76533 | I142: 0.03816404151 | P142: 2014 | Q142: Abril | R142: 64710.76533 | S142: 20
F143: 2014 | G143: Mayo | H143: =$D$71/3 -> 64710.76533 | I143: 0.03816404151 | P143: 2014 | Q143: Mayo | R143: 64710.76533 | S143: 21
F144: 2014 | G144: Junio | H144: =$D$71/3 -> 64710.76533 | I144: 0.03816404151 | P144: 2014 | Q144: Junio | R144: 64710.76533 | S144: 18
F145: 2014 | G145: Julio | H145: =$D$72/3 -> 65330.8356 | I145: 0.04183488991 | P145: 2014 | Q145: Julio | R145: 65330.8356 | S145: 23
F146: 2014 | G146: Agosto | H146: =$D$72/3 -> 65330.8356 | I146: 0.04183488991 | P146: 2014 | Q146: Agosto | R146: 65330.8356 | S146: 19
F147: 2014 | G147: Septiembre | H147: =$D$72/3 -> 65330.8356 | I147: 0.04183488991 | P147: 2014 | Q147: Septiembre | R147: 65330.8356 | S147: 22
F148: =F136+1 -> 2014 | G148: Octubre | H148: =$D$73/3 -> 65987.6928 | I148: =(H148-H136)/H136 -> 0.0375687052 | P148: =P136+1 -> 2014 | Q148: Octubre | R148: 65987.6928 | S148: 22
F149: 2014 | G149: Noviembre | H149: =$D$73/3 -> 65987.6928 | I149: 0.0375687052 | P149: 2014 | Q149: Noviembre | R149: 65987.6928 | S149: 18
F150: 2014 | G150: Diciembre | H150: =$D$73/3 -> 65987.6928 | I150: 0.0375687052 | P150: 2014 | Q150: Diciembre | R150: 65987.6928 | S150: 21
F151: 2015 | G151: Enero | H151: =$D$74/3 -> 66378.78817 | I151: 0.02912254829 | P151: 2015 | Q151: Enero | R151: 66378.78817 | S151: 20
F152: 2015 | G152: Febrero | H152: =$D$74/3 -> 66378.78817 | I152: 0.02912254829 | P152: 2015 | Q152: Febrero | R152: 66378.78817 | S152: 20
F153: 2015 | G153: Marzo | H153: =$D$74/3 -> 66378.78817 | I153: 0.02912254829 | P153: 2015 | Q153: Marzo | R153: 66378.78817 | S153: 21
F154: 2015 | G154: Abril | H154: =$D$75/3 -> 66953.64923 | I154: 0.03466013563 | P154: 2015 | Q154: Abril | R154: 66953.64923 | S154: 20
F155: 2015 | G155: Mayo | H155: =$D$75/3 -> 66953.64923 | I155: 0.03466013563 | P155: 2015 | Q155: Mayo | R155: 66953.64923 | S155: 19
F156: 2015 | G156: Junio | H156: =$D$75/3 -> 66953.64923 | I156: 0.03466013563 | P156: 2015 | Q156: Junio | R156: 66953.64923 | S156: 19
F157: 2015 | G157: Julio | H157: =$D$76/3 -> 67557.44214 | I157: 0.03408201544 | P157: 2015 | Q157: Julio | R157: 67557.44214 | S157: 22
F158: 2015 | G158: Agosto | H158: =$D$76/3 -> 67557.44214 | I158: 0.03408201544 | P158: 2015 | Q158: Agosto | R158: 67557.44214 | S158: 19
F159: 2015 | G159: Septiembre | H159: =$D$76/3 -> 67557.44214 | I159: 0.03408201544 | P159: 2015 | Q159: Septiembre | R159: 67557.44214 | S159: 22
F160: 2015 | G160: Octubre | H160: =$D$77/3 -> 67340.78712 | I160: 0.02050525283 | P160: 2015 | Q160: Octubre | R160: 67340.78712 | S160: 21
F161: 2015 | G161: Noviembre | H161: =$D$77/3 -> 67340.78712 | I161: 0.02050525283 | P161: 2015 | Q161: Noviembre | R161: 67340.78712 | S161: 19
F162: 2015 | G162: Diciembre | H162: =$D$77/3 -> 67340.78712 | I162: 0.02050525283 | P162: 2015 | Q162: Diciembre | R162: 67340.78712 | S162: 21
F163: 2016 | G163: Enero | H163: =$D$78/3 -> 68281.20697 | I163: 0.02866004109 | P163: 2016 | Q163: Enero | R163: 68281.20697 | S163: 19
F164: 2016 | G164: Febrero | H164: =$D$78/3 -> 68281.20697 | I164: 0.02866004109 | P164: 2016 | Q164: Febrero | R164: 68281.20697 | S164: 21
F165: 2016 | G165: Marzo | H165: =$D$78/3 -> 68281.20697 | I165: 0.02866004109 | P165: 2016 | Q165: Marzo | R165: 68281.20697 | S165: 20
F166: 2016 | G166: Abril | H166: =$D$79/3 -> 68157.26897 | I166: 0.01797691024 | P166: 2016 | Q166: Abril | R166: 68157.26897 | S166: 21
F167: 2016 | G167: Mayo | H167: =$D$79/3 -> 68157.26897 | I167: 0.01797691024 | P167: 2016 | Q167: Mayo | R167: 68157.26897 | S167: 20
F168: 2016 | G168: Junio | H168: =$D$79/3 -> 68157.26897 | I168: 0.01797691024 | P168: 2016 | Q168: Junio | R168: 68157.26897 | S168: 21
F169: 2016 | G169: Julio | H169: =$D$80/3 -> 68478.47626 | I169: 0.01363334804 | P169: 2016 | Q169: Julio | R169: 68478.47626 | S169: 19
F170: 2016 | G170: Agosto | H170: =$D$80/3 -> 68478.47626 | I170: 0.01363334804 | P170: 2016 | Q170: Agosto | R170: 68478.47626 | S170: 22
F171: 2016 | G171: Septiembre | H171: =$D$80/3 -> 68478.47626 | I171: 0.01363334804 | P171: 2016 | Q171: Septiembre | R171: 68478.47626 | S171: 22
F172: 2016 | G172: Octubre | H172: =$D$81/3 -> 68912.71446 | I172: 0.02334287148 | P172: 2016 | Q172: Octubre | R172: 68912.71446 | S172: 20
F173: 2016 | G173: Noviembre | H173: =$D$81/3 -> 68912.71446 | I173: 0.02334287148 | P173: 2016 | Q173: Noviembre | R173: 68912.71446 | S173: 20
F174: 2016 | G174: Diciembre | H174: =$D$81/3 -> 68912.71446 | I174: 0.02334287148 | P174: 2016 | Q174: Diciembre | R174: 68912.71446 | S174: 22
F175: 2017 | G175: Enero | H175: =$D$82/3 -> 68860.58362 | I175: 0.008485155381 | P175: 2017 | Q175: Enero | R175: 68860.58362 | S175: 21
F176: 2017 | G176: Febrero | H176: =$D$82/3 -> 68860.58362 | I176: 0.008485155381 | P176: 2017 | Q176: Febrero | R176: 68860.58362 | S176: 20
F177: 2017 | G177: Marzo | H177: =$D$82/3 -> 68860.58362 | I177: 0.008485155381 | P177: 2017 | Q177: Marzo | R177: 68860.58362 | S177: 22
F178: 2017 | G178: Abril | H178: =$D$83/3 -> 69239.12384 | I178: 0.01587291987 | P178: 2017 | Q178: Abril | R178: 69239.12384 | S178: 18
F179: 2017 | G179: Mayo | H179: =$D$83/3 -> 69239.12384 | I179: 0.01587291987 | P179: 2017 | Q179: Mayo | R179: 69239.12384 | S179: 21
F180: 2017 | G180: Junio | H180: =$D$83/3 -> 69239.12384 | I180: 0.01587291987 | P180: 2017 | Q180: Junio | R180: 69239.12384 | S180: 20
F181: 2017 | G181: Julio | H181: =$D$84/3 -> 69554.41589 | I181: 0.01571208474 | P181: 2017 | Q181: Julio | R181: 69554.41589 | S181: 19
F182: 2017 | G182: Agosto | H182: =$D$84/3 -> 69554.41589 | I182: 0.01571208474 | P182: 2017 | Q182: Agosto | R182: 69554.41589 | S182: 21
F183: 2017 | G183: Septiembre | H183: =$D$84/3 -> 69554.41589 | I183: 0.01571208474 | P183: 2017 | Q183: Septiembre | R183: 69554.41589 | S183: 21
F184: 2017 | G184: Octubre | H184: =$D$85/3 -> 69897.87665 | I184: 0.01429579722 | P184: 2017 | Q184: Octubre | R184: 69897.87665 | S184: 21
F185: 2017 | G185: Noviembre | H185: =$D$85/3 -> 69897.87665 | I185: 0.01429579722 | P185: 2017 | Q185: Noviembre | R185: 69897.87665 | S185: 20
F186: 2017 | G186: Diciembre | H186: =$D$85/3 -> 69897.87665 | I186: 0.01429579722 | P186: 2017 | Q186: Diciembre | R186: 69897.87665 | S186: 19
F187: 2018 | G187: Enero | H187: =$D$86/3 -> 70334.7029 | I187: 0.02140730159 | P187: 2018 | Q187: Enero | R187: 70334.7029 | S187: 21
F188: 2018 | G188: Febrero | H188: =$D$86/3 -> 70334.7029 | I188: 0.02140730159 | P188: 2018 | Q188: Febrero | R188: 70334.7029 | S188: 20
F189: 2018 | G189: Marzo | H189: =$D$86/3 -> 70334.7029 | I189: 0.02140730159 | P189: 2018 | Q189: Marzo | R189: 70334.7029 | S189: 19
F190: 2018 | G190: Abril | H190: =$D$87/3 -> 70884.07307 | I190: 0.02375751072 | P190: 2018 | Q190: Abril | R190: 70884.07307 | S190: 21
F191: 2018 | G191: Mayo | H191: =$D$87/3 -> 70884.07307 | I191: 0.02375751072 | P191: 2018 | Q191: Mayo | R191: 70884.07307 | S191: 21
F192: 2018 | G192: Junio | H192: =$D$87/3 -> 70884.07307 | I192: 0.02375751072 | P192: 2018 | Q192: Junio | R192: 70884.07307 | S192: 19
F193: 2018 | G193: Julio | H193: =$D$88/3 -> 71485.97856 | I193: 0.02777052544 | P193: 2018 | Q193: Julio | R193: 71485.97856 | S193: 20
F194: 2018 | G194: Agosto | H194: =$D$88/3 -> 71485.97856 | I194: 0.02777052544 | P194: 2018 | Q194: Agosto | R194: 71485.97856 | S194: 21
F195: 2018 | G195: Septiembre | H195: =$D$88/3 -> 71485.97856 | I195: 0.02777052544 | P195: 2018 | Q195: Septiembre | R195: 71485.97856 | S195: 20
F196: 2018 | G196: Octubre | H196: =$D$89/3 -> 71964.5788 | I196: 0.02956745252 | P196: 2018 | Q196: Octubre | R196: 71964.5788 | S196: 22
F197: 2018 | G197: Noviembre | H197: =$D$89/3 -> 71964.5788 | I197: 0.02956745252 | P197: 2018 | Q197: Noviembre | R197: 71964.5788 | S197: 20
F198: 2018 | G198: Diciembre | H198: =$D$89/3 -> 71964.5788 | I198: 0.02956745252 | P198: 2018 | Q198: Diciembre | R198: 71964.5788 | S198: 20
F199: 2019 | G199: Enero | H199: =$D$90/3 -> 72567.32945 | I199: 0.03174288736 | P199: 2019 | Q199: Enero | R199: 72567.32945 | S199: 21
F200: 2019 | G200: Febrero | H200: =$D$90/3 -> 72567.32945 | I200: 0.03174288736 | P200: 2019 | Q200: Febrero | R200: 72567.32945 | S200: 20
F201: 2019 | G201: Marzo | H201: =$D$90/3 -> 72567.32945 | I201: 0.03174288736 | P201: 2019 | Q201: Marzo | R201: 72567.32945 | S201: 22
F202: 2019 | G202: Abril | H202: =$D$91/3 -> 73258.92172 | I202: 0.03350327577 | P202: 2019 | Q202: Abril | R202: 73258.92172 | S202: 19
... 392 more rows

Sheet Información Histórica
B3: Año | C3: Mes
C5: Enero
C6: Febrero
C7: Marzo
C8: Abril
C9: Mayo
C10: Junio
C11: Julio
C12: Agosto
C13: Septiembre
C14: Octubre
C15: Noviembre
C16: Diciembre

Sheet Variables
B3: Año | C3: Mes
C4: Enero
C5: Febrero
C6: Marzo
C7: Abril
C8: Mayo
C9: Junio
C10: Julio
C11: Agosto
C12: Septiembre
C13: Octubre
C14: Noviembre
C15: Diciembre

Sheet Tarifas
B3: Año | C3: Corrientes | E3: Año | F3: Constantes (2015)
F5: =MROUND((C5*VLOOKUP($E5,'Supuestos macro'!$K$7:$N$56,4,FALSE)),100) -> 

Sheet Paso 1 Y 2 -Alistamiento Datos
E1: Variable Dependiente | F1: Variable Dependiente TPD | G1: Variable Dependiente suavizada | H1: Variables Independiente | J1: Variable Dependiente | K1: Variables Independiente - Log Diferencias
A2: Año | B2: Mes | C2: # | D2: Días del Mes | E2: Mensual | F2: TPD | G2: Suavizada | H2: Mensual | I2: Dummy | J2: Log diferencias | K2: Log diferencias | L2: Dummy
B4: Enero
B5: Febrero
B6: Marzo
B7: Abril
B8: Mayo
B9: Junio
B10: Julio
B11: Agosto
B12: Septiembre
B13: Octubre
B14: Noviembre
B15: Diciembre
B16: Enero
B17: Febrero
B18: Marzo
B19: Abril
B20: Mayo
B21: Junio
B22: Julio
B23: Agosto
B24: Septiembre
B25: Octubre
B26: Noviembre
B27: Diciembre

Sheet Paso 3 - Modelo econometrico
B1: ESTIMACIÓN INICIAL
B6: Año | C6: Mes | D6: Variable dependiente (y)
C7: Enero
C8: Febrero
C9: Marzo
C10: Abril
C11: Mayo
C12: Junio
C13: Julio
C14: Agosto
C15: Septiembre
C16: Octubre
C17: Noviembre
C18: Diciembre
C19: Enero
C20: Febrero
C21: Marzo
C22: Abril
C23: Mayo
C24: Junio
C25: Julio
C26: Agosto
C27: Septiembre
C28: Octubre
C29: Noviembre
C30: Diciembre

Sheet Reestimación 1

Sheet Reestimación 2

Sheet Reestimación 3

Sheet Reestimación 4

Sheet Reestimación 5

Sheet Reestimación 6

Sheet Reestimación 7

Sheet Reestimación 8

Sheet Resultados
B1: Resultados Estimadores
C3: Constante

Sheet Error y Linea base
C2: Percentil
C3: 0.95
B7: Año | C7: Mes

Sheet Consolidado
C2: NOTA: En caso en que haya tenido que correr varias macro para un mismo proyecto, incluya en esta hoja los resultados de la hoja "Error y Linea base" de esta y las demás macro que corrió, para luego continuar con los demás pasos de la valoración

Sheet Ajuste de Riesgo I
C2: Nota: En esta hoja incluya el Ajuste de Riesgo I de TODOS los peajes del proyecto en los que aplicó el caso CON INFORMACIÓN

Sheet Ajuste de Riesgo II
C2: Nota: En esta hoja incluya el Ajuste de Riesgo II de TODOS los peajes del proyecto en los que aplicó el caso CON INFORMACIÓN

Sheet Peajes Sin Info
C2: Nota: En esta hoja realice la valoración de los peajes para el CASO SIN INFORMACIÓN (Demanda)

Sheet Ingresos
C2: Nota: En esta hoja incluya las tarifas de los peajes CON y SIN información y estime los ingresos respectivos del proyecto para el riesgo de demanda
C5: Nota 2: Al final de esta hoja se deberá reflejar el valor contingente TOTAL del proyecto.

Sheet No incremento de Tarifas
C2: Nota: En esta hoja incluya la valoración de no incremento de Tarifas, en caso en que aplique, y pase los resultados a la hoja Ingresos.

Sheet Tarifas diferenciales
C2: Nota: En esta hoja incluya la valoración de Tarifas diferenciales, en caso en que aplique, y pase los resultados a la hoja Ingresos.

Sheet Otros
C2: Nota:En caso de tener más riesgos que deben ser valorados, incluya una pestaña por cada riesgo adicional que se valorará

Sheet Contingente - PA
C2: Nota: Esta hoja deberá tener el resumen del contingente de cada riesgo valorado y el plan de aportes que se someterá a aprobación, en caso en que aplique.

Sheet Datos (hidden)
